bitfinex/quotes_BTCUSD_20250127
["timestamp","ask_amount","ask_price","bid_price","bid_amount"]
[1737962129282,0.023,99007.0,98997.0,0.202026]
[1737962129537,0.023,99005.0,98996.0,0.202028]
[1737962129783,0.023,99008.0,99000.0,0.001]
[1737962130040,0.151511,99003.0,99000.0,0.001]
[1737962130199,0.023,99008.0,99000.0,0.001]
[1737962130427,0.023,99005.0,98999.0,0.151515]
[1737962130624,0.023,99005.0,99000.0,0.003]
[1737962130844,0.00216737,99004.0,99000.0,0.003]
[1737962131072,0.00216737,99004.0,98999.0,0.151516]
[1737962131384,0.00216737,99004.0,99000.0,0.002]
[1737962131588,0.15367637,99004.0,99000.0,0.002]
[1737962131745,0.023,99007.0,98992.0,0.01013922]
[1737962132063,0.151508,99005.0,99000.0,0.002]
[1737962132262,0.023,99002.0,99000.0,0.002]
[1737962132487,0.151511,99003.0,99000.0,0.002]
[1737962132488,0.174513,99001.0,99000.0,0.002]
[1737962132693,0.00216091,99001.0,99000.0,0.002]
[1737962132827,0.00216091,99001.0,99000.0,0.153515]
[1737962133026,0.023,99012.0,99000.0,0.002]
[1737962133377,0.170024,99020.0,99000.0,0.002]
[1737962133550,0.023,99019.0,98999.0,0.001]
[1737962133731,0.023,99019.0,99000.0,0.002]
[1737962133930,0.01854,99020.0,99001.0,0.00100986]
[1737962134158,0.01854,99020.0,99019.0,0.151486]
[1737962134623,0.01854,99020.0,99010.0,0.201997]
[1737962134983,0.023,99019.0,99000.0,0.01031887]
[1737962135189,0.01968113,99000.0,98995.0,0.0802]
[1737962135326,0.01968113,99000.0,98999.0,0.151516]
[1737962136470,0.01968113,99000.0,98996.0,0.15152]
[1737962136681,0.023,98999.0,98976.0,0.0802]
[1737962136888,0.023,98999.0,98979.0,0.01015537]
[1737962137088,0.151521,98996.0,98995.0,0.001]
[1737962137324,0.151518,98998.0,98995.0,0.001]
[1737962137505,0.151524,98995.0,98987.0,0.151534]
[1737962137704,0.151524,98995.0,98980.0,0.20206]
[1737962137705,0.023,98994.0,98980.0,0.20206]
[1737962137907,0.151531,98989.0,98988.0,0.0200033]
[1737962138088,0.42187829,98989.0,98988.0,0.0200033]
[1737962138306,0.44182237,98989.0,98988.0,0.0150033]
[1737962138519,0.42403624,98989.0,98988.0,0.0150033]
[1737962138735,0.42403624,98989.0,98988.0,0.0170033]
[1737962138971,0.27403624,98989.0,98988.0,0.0170033]
[1737962140059,0.27403624,98989.0,98988.0,0.0150033]
[1737962140624,0.27503624,98989.0,98988.0,0.0150033]
[1737962140831,0.27703624,98989.0,98988.0,0.0150033]
[1737962141031,0.27503624,98989.0,98988.0,0.0150033]
[1737962141225,0.27403624,98989.0,98988.0,0.0150033]
[1737962141480,0.02715795,98989.0,98988.0,0.0150033]
[1737962141798,0.17768895,98989.0,98988.0,0.0150033]
[1737962141996,0.15468895,98989.0,98988.0,0.0150033]
[1737962142192,0.00515795,98989.0,98988.0,0.0150033]
[1737962142417,0.15468895,98989.0,98988.0,0.0150033]
[1737962142762,0.15668895,98989.0,98988.0,0.0150033]
[1737962142960,0.00515795,98989.0,98988.0,0.0150033]
[1737962143174,0.00415795,98989.0,98988.0,0.0150033]
[1737962143396,0.15668895,98989.0,98988.0,0.0150033]
[1737962143763,0.00515795,98989.0,98988.0,0.0150033]
[1737962143966,0.00215795,98989.0,98988.0,0.1665363]
[1737962144371,0.01854,98996.0,98995.0,0.151522]
[1737962144576,0.01854,98996.0,98995.0,0.24886929]
[1737962144978,0.01854,98996.0,98995.0,0.151522]
[1737962145343,0.01854,98996.0,98995.0,0.24886929]
[1737962145498,0.01854,98996.0,98995.0,0.151522]
[1737962145680,0.01954,98996.0,98995.0,0.151522]
[1737962145871,0.01854,98996.0,98995.0,0.151522]
[1737962147388,0.01854,98996.0,98995.0,0.155522]
[1737962147595,0.01854,98996.0,98995.0,0.24886929]
[1737962147795,0.01854,98996.0,98995.0,0.39986929]
[1737962147993,0.01854,98996.0,98995.0,0.47936929]
[1737962148352,0.01854,98996.0,98995.0,0.48236929]
[1737962148555,0.01854,98996.0,98995.0,0.47936929]
[1737962148914,0.01854,98996.0,98995.0,0.52966929]
[1737962149121,0.01854,98996.0,98995.0,0.52366929]
[1737962150521,0.01854,98996.0,98995.0,0.53166929]
[1737962150728,0.01954,98996.0,98995.0,0.53166929]
[1737962151167,0.01954,98996.0,98995.0,0.52966929]
[1737962151369,0.01954,98996.0,98995.0,0.53266929]
[1737962153098,0.01954,98996.0,98995.0,0.160522]
[1737962154497,0.01954,98996.0,98995.0,0.157522]
[1737962154703,0.01954,98996.0,98995.0,0.006]
[1737962154902,0.01854,98996.0,98995.0,0.002]
[1737962155131,0.0207172,98996.0,98995.0,0.002]
[1737962155301,0.0207172,98996.0,98995.0,0.004]
[1737962155501,0.023,98995.0,98988.0,0.015145]
[1737962155742,0.151524,98994.0,98988.0,0.015145]
[1737962155958,0.151528,98992.0,98988.0,0.015145]
[1737962156139,0.00216787,98994.0,98988.0,0.015145]
[1737962156359,0.151525,98993.0,98988.0,0.015145]
[1737962156560,0.00216787,98993.0,98988.0,0.015145]
[1737962156886,0.151531,98989.0,98988.0,0.015145]
[1737962157039,0.174531,98989.0,98988.0,0.015145]
[1737962157235,0.0251471,98989.0,98988.0,0.015145]
[1737962157674,0.1952181,98989.0,98988.0,0.019145]
[1737962157872,0.1952181,98989.0,98988.0,0.016145]
[1737962158208,0.1952181,98989.0,98988.0,0.015145]
[1737962158209,0.0436871,98989.0,98988.0,0.015145]
[1737962158343,0.1972181,98989.0,98988.0,0.015145]
[1737962158537,0.1962181,98989.0,98988.0,0.015145]
[1737962158933,0.1982181,98989.0,98988.0,0.015145]
[1737962159539,0.0236871,98989.0,98988.0,0.015145]
[1737962159773,0.1742181,98989.0,98988.0,0.015145]
[1737962160217,0.1952181,98989.0,98988.0,0.015145]
[1737962160591,0.48896539,98989.0,98988.0,0.015145]
[1737962161007,0.58796539,98989.0,98988.0,0.00709682]
[1737962161365,0.60100506,98989.0,98988.0,0.00709682]
[1737962161575,0.61916714,98989.0,98988.0,0.00709682]
[1737962161779,0.61816714,98989.0,98988.0,0.00709682]
[1737962161997,0.62116714,98989.0,98988.0,0.00709682]
[1737962162401,0.3252181,98989.0,98988.0,0.00709682]
[1737962162609,0.0236871,98989.0,98988.0,0.00709682]
[1737962162802,0.0236871,98989.0,98988.0,0.15862982]
[1737962163018,0.0236871,98989.0,98988.0,0.15763982]
[1737962163130,0.02554,98989.0,98988.0,0.53369709]
[1737962163345,0.01997871,99000.0,98999.0,0.151516]
[1737962163563,0.01997871,99000.0,98999.0,0.2498731]
[1737962163768,0.01997871,99000.0,98999.0,0.151516]
[1737962164055,0.01997871,99000.0,98988.0,0.08710682]
[1737962164260,0.01997871,99000.0,98988.0,0.00610682]
[1737962164430,0.001,98989.0,98988.0,0.15763982]
[1737962164751,0.00029758,99000.0,98999.0,0.002]
[1737962164896,0.24915987,99000.0,98999.0,0.002]
[1737962165099,0.24915987,99000.0,98999.0,0.004]
[1737962165100,0.1538174,99000.0,98999.0,0.004]
[1737962165305,0.1538174,99000.0,98999.0,0.155516]
[1737962165306,0.0023024,99000.0,98999.0,0.155516]
[1737962165484,0.0023024,99000.0,98999.0,0.153516]
[1737962165686,0.00029758,99000.0,98999.0,0.153516]
[1737962165896,0.00029758,99000.0,98999.0,0.00300997]
[1737962166102,0.00029758,99000.0,98999.0,0.25187321]
[1737962166299,0.00029758,99000.0,98999.0,0.24886329]
[1737962167576,0.00029758,99000.0,98999.0,0.25086329]
[1737962168060,0.00029758,99000.0,98999.0,0.25486329]
[1737962168480,0.00029758,99000.0,98999.0,0.25786329]
[1737962168651,0.00029758,99000.0,98999.0,0.160516]
[1737962169462,0.00029758,99000.0,98999.0,0.16152592]
[1737962169977,0.00029758,99000.0,98999.0,0.25786329]
[1737962170416,0.00029758,99000.0,98999.0,0.157516]
[1737962170618,0.00029758,99000.0,98999.0,0.159516]
[1737962170819,0.00029758,99000.0,98999.0,0.153516]
[1737962171031,0.01883758,99000.0,98999.0,0.157516]
[1737962171258,0.01883758,99000.0,98999.0,0.155516]
[1737962171435,0.01883758,99000.0,98999.0,0.157516]
[1737962171854,0.01883758,99000.0,98999.0,0.153516]
[1737962172214,0.01883758,99000.0,98999.0,0.25487326]
[1737962172556,0.01883758,99000.0,98999.0,0.25086329]
[1737962172904,0.01883758,99000.0,98999.0,0.24886329]
[1737962173104,0.01883758,99000.0,98999.0,0.25086329]
[1737962173724,0.01883758,99000.0,98999.0,0.24886329]
[1737962173954,0.01883758,99000.0,98999.0,0.25186329]
[1737962174375,0.01883758,99000.0,98999.0,0.25086329]
[1737962174748,0.01883758,99000.0,98999.0,0.158516]
[1737962175347,0.29069987,99000.0,98999.0,0.007]
[1737962175821,0.29276752,99000.0,98999.0,0.005]
[1737962176186,0.29276752,99000.0,98999.0,0.007]
[1737962176571,0.29276752,99000.0,98999.0,0.005]
[1737962176815,0.02090523,99000.0,98999.0,0.005]
[1737962177140,0.19542023,99000.0,98999.0,0.005]
[1737962177310,0.29276752,99000.0,98999.0,0.005]
[1737962177516,0.29276752,99000.0,98995.0,0.0001417]
[1737962177517,0.023,98999.0,98995.0,0.0001417]
[1737962177715,0.174521,98996.0,98995.0,0.0001417]
[1737962177922,0.193061,98996.0,98995.0,0.0001417]
[1737962178118,0.19512865,98996.0,98995.0,0.0001417]
[1737962178320,0.44247594,98996.0,98995.0,0.0001417]
[1737962178520,0.52447594,98996.0,98995.0,0.0001417]
[1737962178930,0.44247594,98996.0,98995.0,0.0001417]
[1737962179333,0.48997594,98996.0,98995.0,0.0001417]
[1737962179671,0.56312902,98996.0,98995.0,0.0001417]
[1737962179873,0.50250902,98996.0,98995.0,0.0001417]
[1737962180197,0.50450902,98996.0,98995.0,0.0001417]
[1737962180707,0.50250902,98996.0,98995.0,0.0001417]
[1737962181102,0.50550902,98996.0,98995.0,0.0011417]
[1737962181538,0.50550902,98996.0,98995.0,0.0001417]
[1737962181742,0.51050902,98996.0,98995.0,0.0011417]
[1737962182184,0.5108066,98996.0,98995.0,0.0011417]
[1737962182376,0.5139136,98996.0,98995.0,0.0011417]
[1737962182613,0.5179136,98996.0,98995.0,0.0011417]
[1737962182765,0.5129136,98996.0,98995.0,0.0001417]
[1737962182964,0.5179136,98996.0,98995.0,0.0011417]
[1737962183154,0.5139136,98996.0,98995.0,0.0011417]
[1737962183362,0.5169136,98996.0,98995.0,0.0011417]
[1737962183875,0.5339136,98996.0,98995.0,7e-07]
[1737962184278,0.5339136,98996.0,98907.0,0.083]
[1737962184279,0.503042,98975.0,98907.0,0.083]
[1737962184473,0.32458,98957.0,98956.0,0.00010921]
[1737962184669,0.42192729,98957.0,98956.0,0.00010921]
[1737962184919,0.42391699,98957.0,98956.0,0.00010921]
[1737962185759,0.27391699,98957.0,98956.0,0.00010921]
[1737962186024,0.27691699,98957.0,98956.0,0.00010921]
[1737962186230,0.52426428,98957.0,98956.0,0.00010921]
[1737962186434,0.42891699,98957.0,98956.0,0.00110921]
[1737962186839,0.43091699,98957.0,98956.0,0.00110921]
[1737962187017,0.57031699,98957.0,98956.0,2.1e-07]
[1737962187193,0.58831699,98957.0,98956.0,2.1e-07]
[1737962187397,0.68566428,98957.0,98956.0,2.1e-07]
[1737962187657,0.59131699,98957.0,98956.0,2.1e-07]
[1737962187931,0.424603,98942.0,98941.0,6e-07]
[1737962188125,0.52195029,98942.0,98941.0,6e-07]
[1737962188329,0.40162,98931.0,98901.0,0.0001416]
[1737962188461,0.52196729,98931.0,98901.0,0.0001416]
[1737962188651,0.52196729,98931.0,98901.0,0.1518076]
[1737962188652,0.57106729,98931.0,98901.0,0.1518076]
[1737962188857,0.5730018,98931.0,98902.0,0.202218]
[1737962189068,0.5730018,98931.0,98903.0,0.151663]
[1737962189298,0.5730018,98931.0,98903.0,0.202217]
[1737962189515,0.5730018,98931.0,98904.0,0.151661]
[1737962189829,0.58844102,98931.0,98901.0,0.0001416]
[1737962190074,0.66974102,98931.0,98901.0,0.0001416]
[1737962190274,0.66974102,98931.0,98930.0,0.08125395]
[1737962190482,0.66974102,98931.0,98930.0,0.07580131]
[1737962191304,0.60936444,98931.0,98930.0,0.07580131]
[1737962192563,0.60936444,98931.0,98930.0,0.04727601]
[1737962193552,0.60936444,98931.0,98930.0,0.04741771]
[1737962194860,1.11167123,98931.0,98930.0,0.04741771]
[1737962195575,1.11667123,98931.0,98930.0,0.04841771]
[1737962195777,1.09667123,98931.0,98930.0,0.04841771]
[1737962195981,1.19717123,98931.0,98930.0,7.1e-07]
[1737962196117,1.09717123,98931.0,98930.0,7.1e-07]
[1737962196522,0.424665,98902.0,98901.0,0.0001416]
[1737962196784,0.424665,98902.0,98890.0,0.0001417]
[1737962196785,0.324682,98891.0,98890.0,0.0001417]
[1737962196940,0.42202929,98891.0,98890.0,0.0001417]
[1737962197503,0.57060006,98891.0,98890.0,0.0001417]
[1737962197708,0.42390006,98891.0,98890.0,0.0001417]
[1737962197933,0.42404891,98891.0,98890.0,0.0001417]
[1737962198066,0.29258891,98891.0,98890.0,0.0001417]
[1737962198281,0.44258891,98891.0,98890.0,0.0001417]
[1737962198500,0.43985298,98891.0,98890.0,0.0001417]
[1737962198905,0.43985298,98891.0,98890.0,0.0011417]
[1737962200488,0.53985298,98891.0,98890.0,0.0011417]
[1737962201496,0.64720027,98891.0,98890.0,0.0011417]
[1737962201700,0.72570027,98891.0,98890.0,7e-07]
[1737962202516,0.62835298,98891.0,98890.0,7e-07]
[1737962203134,0.62835298,98891.0,98863.0,7e-05]
[1737962203135,0.334683,98890.0,98889.0,1e-06]
[1737962203345,0.46005331,98890.0,98889.0,1e-06]
[1737962203550,0.46188143,98890.0,98889.0,1e-06]
[1737962204386,0.251705,98876.0,98863.0,7e-05]
[1737962204590,0.174723,98864.0,98863.0,7e-05]
[1737962204793,0.27274124,98864.0,98863.0,7e-05]
[1737962204992,0.42207029,98864.0,98863.0,7e-05]
[1737962205229,0.42412461,98864.0,98863.0,7e-05]
[1737962205439,0.42412461,98864.0,98857.0,7e-07]
[1737962205440,0.301732,98858.0,98857.0,7e-07]
[1737962205651,0.16123495,98844.0,98843.0,0.02195073]
[1737962205856,0.251772,98832.0,98831.0,0.0001417]
[1737962206058,0.35062461,98832.0,98831.0,0.0001417]
[1737962206267,0.72682206,98832.0,98831.0,0.0001417]
[1737962206468,0.5148845,98832.0,98831.0,0.0001417]
[1737962206675,0.4363845,98832.0,98831.0,0.0001417]
[1737962206876,0.151818,98803.0,98800.0,0.0003948]
[1737962207089,0.09734729,98802.0,98801.0,0.15182]
[1737962207302,0.00201537,98802.0,98801.0,0.504247]
[1737962207521,0.02035471,98845.0,98838.0,0.151762]
[1737962207730,0.09734729,98844.0,98821.0,0.15]
[1737962207938,0.09734729,98844.0,98822.0,0.28069574]
[1737962207939,0.00200325,98844.0,98822.0,0.28069574]
[1737962208147,0.00200325,98844.0,98837.0,0.151763]
[1737962208148,0.09734729,98843.0,98837.0,0.151763]
[1737962208362,0.01854,98844.0,98843.0,0.151755]
[1737962208970,0.01954,98844.0,98843.0,0.151755]
[1737962209395,0.01854,98844.0,98843.0,0.151755]
[1737962209606,0.01954,98844.0,98843.0,0.151755]
[1737962209940,0.01854,98844.0,98843.0,0.151755]
[1737962210151,0.01854,98844.0,98829.0,0.01587035]
[1737962210152,0.11588729,98844.0,98835.0,0.151767]
[1737962210353,0.09734729,98843.0,98834.0,0.151768]
[1737962210555,0.09734729,98843.0,98822.0,0.229087]
[1737962210556,0.023,98841.0,98822.0,0.229087]
[1737962210756,0.09801824,98840.0,98822.0,0.0773]
[1737962210960,0.151764,98838.0,98823.0,0.202382]
[1737962211183,0.12034729,98836.0,98807.0,0.048]
[1737962211403,0.023,98831.0,98815.0,0.151798]
[1737962211602,0.023,98829.0,98805.0,0.0773]
[1737962211808,0.202375,98826.0,98805.0,0.0773]
[1737962212010,0.09734729,98825.0,98814.0,0.2024]
[1737962212290,0.09734729,98825.0,98813.0,0.2024]
[1737962212505,0.20238,98824.0,98804.0,0.20242]
[1737962212708,0.151789,98822.0,98801.0,0.202427]
[1737962212967,0.09734729,98821.0,98811.0,0.151803]
[1737962213178,0.023,98814.0,98800.0,0.0003948]
[1737962213380,0.001,98825.0,98791.0,0.0481418]
[1737962213381,0.01928633,98800.0,98797.0,0.151825]
[1737962213585,0.01928633,98800.0,98799.0,0.151823]
[1737962214030,0.01928633,98800.0,98799.0,0.44818229]
[1737962214232,0.01928633,98800.0,98799.0,0.56053913]
[1737962215398,0.01928633,98800.0,98799.0,0.56253913]
[1737962215596,0.01928633,98800.0,98799.0,0.58315439]
[1737962215781,0.01928633,98800.0,98799.0,0.55815439]
[1737962216029,0.02028633,98800.0,98799.0,0.57915439]
[1737962216253,0.02028633,98800.0,98799.0,0.55915439]
[1737962216433,0.02028633,98800.0,98799.0,0.57915439]
[1737962216635,0.02028633,98800.0,98799.0,0.38853913]
[1737962216937,0.01928633,98800.0,98799.0,0.53753913]
[1737962217319,0.02028633,98800.0,98799.0,0.56853913]
[1737962217527,0.02028633,98800.0,98799.0,0.53853913]
[1737962217689,0.02028633,98800.0,98799.0,0.43933374]
[1737962217891,0.02028633,98800.0,98799.0,0.28933374]
[1737962218111,0.02028633,98800.0,98799.0,0.24433374]
[1737962218688,0.01928633,98800.0,98799.0,0.2647989]
[1737962218898,0.02028633,98800.0,98799.0,0.2677989]
[1737962219173,0.02028633,98800.0,98799.0,0.4177989]
[1737962219382,0.01928633,98800.0,98799.0,0.4167989]
[1737962219585,0.02028633,98800.0,98799.0,0.4177989]
[1737962219990,0.02028633,98800.0,98799.0,0.17443006]
[1737962221442,0.02028633,98800.0,98799.0,0.49907735]
[1737962221646,0.00014868,98829.0,98828.0,0.379078]
[1737962221854,0.00014868,98829.0,98828.0,0.54442529]
[1737962222134,0.01854,98844.0,98828.0,0.54442529]
[1737962222135,0.01854,98844.0,98843.0,0.301755]
[1737962222368,0.01854,98892.0,98863.0,0.301725]
[1737962222586,0.01854,98892.0,98891.0,0.301682]
[1737962222788,0.00029779,98931.0,98885.0,0.15]
[1737962223005,0.32740259,98930.0,98886.0,0.09835835]
[1737962223213,0.09734729,98926.0,98877.0,0.202269]
[1737962223421,0.09734729,98926.0,98889.0,0.15]
[1737962223422,0.00067095,98925.0,98889.0,0.15]
[1737962223629,0.00067095,98925.0,98901.0,0.15]
[1737962223630,0.001768,98925.0,98901.0,0.15]
[1737962223853,0.00191765,98925.0,98924.0,0.151631]
[1737962224056,0.00014965,98925.0,98924.0,0.301631]
[1737962224487,0.00014965,98925.0,98908.0,0.048]
[1737962224488,0.151643,98917.0,98902.0,0.09734729]
[1737962224676,0.151643,98917.0,98887.0,0.0761]
[1737962224677,0.151645,98916.0,98887.0,0.0761]
[1737962224875,0.001768,98916.0,98889.0,0.202246]
[1737962225078,0.001768,98916.0,98909.0,0.151653]
[1737962225392,0.09911529,98915.0,98901.0,0.002]
[1737962225615,0.023,98899.0,98857.0,0.0654]
[1737962225812,0.023,98897.0,98864.0,0.02]
[1737962225992,0.023,98895.0,98889.0,0.151684]
[1737962226131,0.023,98895.0,98860.0,0.4323603]
[1737962226132,0.151684,98890.0,98858.0,0.20231]
[1737962226345,0.023,98888.0,98855.0,0.0807]
[1737962226556,0.023,98886.0,98882.0,0.151695]
[1737962226763,0.202231,98897.0,98880.0,0.151698]
[1737962226764,0.023,98884.0,98880.0,0.151698]
[1737962226981,0.12034729,98884.0,98880.0,0.151698]
[1737962227163,0.12034729,98884.0,98873.0,0.202279]
[1737962227364,0.00183747,98883.0,98882.0,0.151695]
[1737962227570,0.00014954,98884.0,98883.0,0.301694]
[1737962227929,0.202155,98934.0,98885.0,0.15]
[1737962228161,0.151632,98924.0,98913.0,0.151648]
[1737962228312,0.151637,98921.0,98891.0,0.202242]
[1737962228516,0.00183747,98930.0,98891.0,0.202242]
[1737962228517,0.09734729,98920.0,98892.0,0.15101101]
[1737962228710,0.0019011,98920.0,98919.0,0.151639]
[1737962228914,0.0019011,98920.0,98892.0,0.2483583]
[1737962228915,0.00044727,98931.0,98930.0,0.151622]
[1737962229500,0.00044727,98931.0,98928.0,0.151624]
[1737962229738,0.00044727,98931.0,98930.0,0.151622]
[1737962230144,0.09779456,98931.0,98919.0,0.005]
[1737962230349,0.09779456,98931.0,98892.0,0.09734729]
[1737962230350,0.023,98929.0,98921.0,0.151635]
[1737962230551,0.09734729,98928.0,98903.0,0.15]
[1737962230817,0.023,98915.0,98906.0,0.15]
[1737962231213,0.023,98927.0,98906.0,0.15]
[1737962231417,0.00190716,98914.0,98913.0,0.151648]
[1737962231636,0.00044727,98931.0,98901.0,0.15]
[1737962231873,0.00044727,98931.0,98930.0,0.151622]
[1737962232277,0.00044727,98931.0,98930.0,0.152622]
[1737962232504,0.00044727,98931.0,98930.0,0.30263275]
[1737962232673,0.00044727,98931.0,98930.0,0.47966929]
[1737962233476,0.00044727,98931.0,98930.0,0.382322]
[1737962233697,0.00044727,98931.0,98930.0,0.47966929]
[1737962234221,0.00044727,98931.0,98930.0,0.48566929]
[1737962234421,2.7e-07,98931.0,98930.0,0.10648708]
[1737962234557,0.00029821,98963.0,98962.0,0.151573]
[1737962234759,0.00029821,98963.0,98930.0,0.09835768]
[1737962234760,0.00044764,98963.0,98942.0,0.00101038]
[1737962235119,0.00044764,98963.0,98932.0,0.00913979]
[1737962235334,0.00194351,98962.0,98934.0,0.202154]
[1737962235468,0.00044764,98963.0,98935.0,0.00101047]
[1737962235700,0.023,98960.0,98935.0,0.00101047]
[1737962235903,0.225105,98958.0,98936.0,0.20215]
[1737962236167,0.01,98949.0,98942.0,0.002]
[1737962236370,0.09996175,98957.0,98946.0,0.151597]
[1737962236371,0.12034729,98948.0,98946.0,0.151597]
[1737962236687,0.12034729,98948.0,98922.0,0.00072988]
[1737962236688,0.09734729,98948.0,98910.0,0.2300553]
[1737962236867,0.023,98936.0,98935.0,0.003]
[1737962237269,0.01,98945.0,98935.0,0.008]
[1737962237477,0.01,98950.0,98944.0,0.1516]
[1737962237648,0.033,98948.0,98942.0,0.151603]
[1737962237847,0.023,98947.0,98946.0,0.001]
[1737962238056,0.01,98960.0,98947.0,0.202128]
[1737962238057,0.01086021,98957.0,98947.0,0.202128]
[1737962238255,0.0482,98987.0,98950.0,0.202122]
[1737962238462,0.01,98979.0,98962.0,0.151573]
[1737962238641,0.01,98978.0,98962.0,0.151573]
[1737962238844,0.01,98994.0,98962.0,0.15258334]
[1737962239045,0.20230558,99006.0,98962.0,0.15258334]
[1737962239046,0.00029758,99006.0,98962.0,1.68487642]
[1737962239223,0.00029758,99006.0,98962.0,1.62964259]
[1737962239435,0.00029758,99006.0,98962.0,1.30705459]
[1737962239633,0.00029758,99006.0,98962.0,0.42270359]
[1737962239882,0.01029758,99006.0,98995.0,0.151522]
[1737962240084,0.00044698,98996.0,98995.0,0.151522]
[1737962240285,0.00044698,98996.0,98971.0,0.15]
[1737962240485,0.00044698,98996.0,98995.0,0.151522]
[1737962240698,0.01,98991.0,98962.0,0.005]
[1737962240928,0.174543,98982.0,98962.0,0.005]
[1737962241108,0.023,98980.0,98962.0,0.002]
[1737962241338,0.01086021,98985.0,98962.0,0.002]
[1737962241634,0.01086021,98985.0,98951.0,0.15]
[1737962241635,0.023,98975.0,98951.0,0.15]
[1737962241842,0.023,98968.0,98953.0,0.202116]
[1737962242045,0.023,98959.0,98936.0,0.048]
[1737962242170,0.00029715,98963.0,98958.0,0.151579]
[1737962242553,0.00029715,98963.0,98962.0,0.151573]
[1737962242765,0.00029715,98963.0,98962.0,0.303573]
[1737962243264,0.00029715,98963.0,98962.0,0.301573]
[1737962243474,0.00029715,98963.0,98962.0,0.39892029]
[1737962243647,0.00029715,98963.0,98962.0,0.41346361]
[1737962244266,1.5e-07,98963.0,98962.0,1.51720961]
[1737962244500,0.00029758,98996.0,98995.0,0.151522]
[1737962245436,0.00029758,98996.0,98991.0,0.202037]
[1737962245646,0.00219741,98996.0,98995.0,0.151522]
[1737962246054,0.00029758,98996.0,98995.0,0.1525319]
[1737962246262,0.00029758,98996.0,98995.0,0.1555319]
[1737962246455,0.09764487,98996.0,98995.0,0.151522]
[1737962246669,0.02329758,98996.0,98995.0,0.153522]
[1737962246813,0.1325447,98996.0,98995.0,0.005]
[1737962247032,0.13064487,98996.0,98995.0,0.002]
[1737962247218,0.2840657,98996.0,98995.0,0.002]
[1737962247423,0.2840657,98996.0,98995.0,0.004]
[1737962247726,0.1225447,98996.0,98995.0,0.155522]
[1737962247971,0.2840657,98996.0,98995.0,0.002]
[1737962248228,0.2840657,98996.0,98995.0,0.003]
[1737962248229,0.29492591,98996.0,98995.0,0.003]
[1737962248438,0.34122591,98996.0,98995.0,0.003]
[1737962248621,0.34137531,98996.0,98995.0,0.003]
[1737962248823,0.34137531,98996.0,98942.0,0.0471]
[1737962248824,0.0996941,98996.0,98972.0,0.00101028]
[1737962249069,0.0996941,98996.0,98942.0,0.0471]
[1737962249070,0.151527,98992.0,98955.0,0.00101018]
[1737962249241,0.023,98990.0,98956.0,0.09835745]
[1737962249466,0.023,98988.0,98956.0,0.09734729]
[1737962249648,0.023,98988.0,98958.0,0.15]
[1737962249910,0.023,98986.0,98985.0,0.151538]
[1737962250162,0.023,98986.0,98981.0,0.202057]
[1737962250359,0.09734729,98986.0,98946.0,0.00913979]
[1737962250492,0.09734729,98986.0,98951.0,0.24835754]
[1737962250696,0.03489983,98985.0,98956.0,0.001]
[1737962250927,0.023,98972.0,98962.0,0.202096]
[1737962251110,0.1,98999.0,98956.0,0.001]
[1737962251111,0.023,98963.0,98956.0,0.001]
[1737962251309,0.19444021,98957.0,98956.0,0.001]
[1737962251512,0.29245845,98957.0,98956.0,0.001]
[1737962251751,0.29368733,98957.0,98956.0,0.001]
[1737962252172,0.44368733,98957.0,98956.0,0.002]
[1737962252581,0.12224712,98957.0,98956.0,0.001]
[1737962252929,0.29368733,98957.0,98956.0,0.001]
[1737962253106,0.023,98949.0,98937.0,0.202148]
[1737962253307,0.023,98949.0,98941.0,0.00049703]
[1737962253506,0.032,98950.0,98943.0,0.151601]
[1737962253716,0.032,98950.0,98941.0,0.00049703]
[1737962253717,0.009,98945.0,98941.0,0.00049703]
[1737962253864,0.009,98943.0,98941.0,0.00049703]
[1737962254065,0.023,98942.0,98941.0,0.00049703]
[1737962254275,0.28095029,98942.0,98941.0,0.00049703]
[1737962254525,0.29368911,98942.0,98941.0,0.00049703]
[1737962254678,0.29368911,98942.0,98941.0,0.00149703]
[1737962254882,0.29368911,98942.0,98941.0,0.00049703]
[1737962255085,0.39368911,98942.0,98941.0,0.00049703]
[1737962255293,0.44447921,98932.0,98931.0,0.0001414]
[1737962255526,0.2918265,98932.0,98931.0,0.0001414]
[1737962255723,0.27196629,98932.0,98931.0,0.0001414]
[1737962255923,0.29370511,98932.0,98931.0,0.0001414]
[1737962256091,0.2828449,98932.0,98931.0,0.0001414]
[1737962256285,0.1312259,98932.0,98931.0,0.0001414]
[1737962256522,0.14208611,98932.0,98931.0,0.0001414]
[1737962256712,0.1222259,98932.0,98931.0,0.0001414]
[1737962256933,0.02487861,98932.0,98931.0,0.0001414]
[1737962257319,0.1312259,98932.0,98931.0,0.0001414]
[1737962257521,0.2828449,98932.0,98931.0,0.0001414]
[1737962257723,0.1312259,98932.0,98931.0,0.0001414]
[1737962257904,0.02487861,98932.0,98931.0,0.1517614]
[1737962258106,0.1312259,98932.0,98931.0,0.0001414]
[1737962258327,0.2918265,98932.0,98931.0,0.0001414]
[1737962258531,0.29370511,98932.0,98931.0,0.0001414]
[1737962258925,0.59100492,98932.0,98931.0,0.0001414]
[1737962259116,0.59100492,98932.0,98864.0,0.0806]
[1737962259117,0.01086021,98901.0,98864.0,0.0806]
[1737962259342,0.009,98898.0,98865.0,0.09734729]
[1737962259585,0.09734729,98898.0,98883.0,0.202259]
[1737962259763,0.10634729,98898.0,98883.0,0.202259]
[1737962259913,0.00186352,98897.0,98867.0,0.202291]
[1737962260130,0.009,98890.0,98868.0,0.00101115]
[1737962260335,0.032,98883.0,98882.0,0.151695]
[1737962260531,0.12034729,98883.0,98882.0,0.151695]
[1737962260737,0.00186352,98883.0,98882.0,0.151695]
[1737962261246,0.17468,98892.0,98885.0,0.15169]
[1737962261247,0.023,98892.0,98885.0,0.15169]
[1737962261442,0.023,98892.0,98874.0,0.202276]
[1737962261443,0.009,98886.0,98883.0,0.151693]
[1737962261677,0.12034729,98885.0,98884.0,0.151692]
[1737962262219,0.12034729,98885.0,98868.0,0.00014943]
[1737962262220,0.16071,98873.0,98868.0,0.00014943]
[1737962262341,0.01086021,98875.0,98869.0,0.202287]